bitfinex/quotes_SOLUSD_20250710
["timestamp","ask_amount","ask_price","bid_price","bid_amount"]
[1752156717800,0.06,157.55,157.52,7.49621617]
[1752156718094,0.06,157.55,157.53,34.02]
[1752156720774,6.83621617,157.55,157.53,33.3]
[1752156720996,0.06,157.55,157.53,33.3]
[1752156721192,0.06,157.55,157.54,0.72]
[1752156721904,0.06,157.55,157.54,7.06759426]
[1752156722201,0.06,157.55,157.54,13.84381043]
[1752156723499,0.06,157.55,157.54,32.49345929]
[1752156723814,0.06,157.55,157.54,7.49621617]
[1752156724121,0.06,157.55,157.53,33.3]
[1752156724482,0.06,157.55,157.51,8.86730894]
[1752156724790,6.77621617,157.52,157.5,33.3]
[1752156725189,7.45621617,157.51,157.48,8.86730894]
[1752156725390,6.77621617,157.5,157.48,42.14730894]
[1752156725577,6.77621617,157.5,157.48,33.28]
[1752156725979,13.80543277,157.5,157.47,0.03]
[1752156726177,6.77621617,157.5,157.48,33.28]
[1752156726595,7.02846211,157.52,157.48,33.28]
[1752156726799,6.77621617,157.5,157.47,0.03]
[1752156726982,6.77621617,157.49,157.47,0.03]
[1752156727181,7.45621617,157.49,157.47,0.03]
[1752156727386,7.45621617,157.48,157.47,0.03]
[1752156728000,13.12585322,157.49,157.47,0.03]
[1752156728181,6.77621617,157.48,157.47,0.03]
[1752156728379,7.45621617,157.48,157.47,0.03]
[1752156729107,13.12587203,157.49,157.47,0.03]
[1752156729288,6.77621617,157.48,157.47,0.03]
[1752156729600,7.02965586,157.49,157.47,0.03]
[1752156729779,6.77621617,157.48,157.47,0.03]
[1752156729981,13.12622887,157.48,157.47,0.03]
[1752156730196,13.80622887,157.48,157.47,0.03]
[1752156731498,7.0300127,157.48,157.47,0.03]
[1752156731684,13.80622887,157.48,157.47,0.03]
[1752156732091,7.0300127,157.48,157.47,0.03]
[1752156732303,13.80622887,157.48,157.47,0.03]
[1752156733612,15.42252887,157.48,157.47,0.03]
[1752156733790,15.42252887,157.48,157.44,0.03]
[1752156733996,6.77621617,157.45,157.44,0.03]
[1752156734293,13.12743878,157.45,157.44,0.03]
[1752156734907,13.80743878,157.45,157.44,0.03]
[1752156735214,13.12743878,157.45,157.44,0.03]
[1752156735415,6.77621617,157.45,157.44,0.03]
[1752156736113,13.12743878,157.45,157.44,0.03]
[1752156736316,13.80743878,157.45,157.44,0.03]
[1752156736812,13.12743878,157.45,157.44,0.03]
[1752156736988,13.80743878,157.45,157.44,0.03]
[1752156738497,13.12743878,157.45,157.44,0.03]
[1752156738697,13.80743878,157.45,157.44,0.03]
[1752156742697,20.58365495,157.45,157.44,0.03]
[1752156743301,26.0,157.42,157.35,0.67]
[1752156743494,6.77621617,157.39,157.35,0.67]
[1752156743709,26.0,157.42,157.32,26.43744886]
[1752156743710,6.77621617,157.37,157.33,0.67]
[1752156743921,0.68,157.38,157.33,0.67]
[1752156743922,6.77621617,157.36,157.33,0.67]
[1752156744215,6.77621617,157.36,157.32,27.62336503]
[1752156744413,6.77621617,157.36,157.32,33.30972544]
[1752156744604,6.77621617,157.36,157.33,0.67]
[1752156744804,7.034334,157.38,157.33,0.67]
[1752156745003,6.77621617,157.37,157.34,0.67]
[1752156745198,6.77621617,157.38,157.33,6.77621617]
[1752156745398,6.77621617,157.38,157.34,0.67]
[1752156745717,6.77621617,157.38,157.33,6.77621617]
[1752156745718,6.77621617,157.38,157.35,0.67]
[1752156745891,6.35364381,157.39,157.35,0.67]
[1752156746089,6.77621617,157.38,157.35,0.67]
[1752156746514,0.68,157.37,157.33,13.13207089]
[1752156746688,0.68,157.37,157.33,13.80207089]
[1752156746895,13.13031877,157.38,157.33,13.80207089]
[1752156747215,6.77621617,157.37,157.33,7.44621617]
[1752156747395,6.77621617,157.37,157.34,0.67]
[1752156747596,13.81031877,157.38,157.34,0.67]
[1752156748012,26.68,157.4,157.35,7.44621617]
[1752156748234,6.77621617,157.39,157.35,7.44621617]
[1752156748514,6.77621617,157.39,157.36,0.67]
[1752156748815,13.12989644,157.39,157.36,0.67]
[1752156749016,6.77621617,157.37,157.33,6.77621617]
[1752156749519,7.45621617,157.37,157.33,6.77621617]
[1752156749923,0.68,157.37,157.33,7.44621617]
[1752156750523,0.68,157.37,157.33,13.80225093]
[1752156750904,7.03445768,157.37,157.33,7.44621617]
[1752156751107,7.03445768,157.37,157.33,6.77621617]
[1752156751108,0.68,157.36,157.33,6.77621617]
[1752156751621,0.68,157.36,157.32,40.05621617]
[1752156751822,0.68,157.36,157.32,40.72621617]
[1752156752208,0.68,157.36,157.32,47.08251238]
[1752156752407,13.13034068,157.38,157.33,7.44621617]
[1752156752608,6.77621617,157.38,157.34,7.44621617]
[1752156752831,6.77621617,157.38,157.32,39.63629621]
[1752156753005,6.77621617,157.38,157.35,0.67]
[1752156753826,13.81028239,157.38,157.34,6.77621617]
[1752156754022,13.81028239,157.38,157.34,7.44621617]
[1752156754234,13.81028239,157.38,157.34,0.67]
[1752156754517,6.77621617,157.35,157.31,0.03]
[1752156754898,7.45621617,157.35,157.31,0.03]
[1752156755315,7.45621617,157.35,157.31,6.80621617]
[1752156755499,7.45621617,157.35,157.31,7.47621617]
[1752156755811,0.68,157.35,157.31,6.80621617]
[1752156756019,7.0353805,157.35,157.31,7.47621617]
[1752156756203,13.81159667,157.35,157.31,7.47621617]
[1752156756518,0.68,157.34,157.31,6.80621617]
[1752156756904,13.13159667,157.35,157.31,6.80621617]
[1752156757104,0.68,157.33,157.31,0.03]
[1752156757312,6.77621617,157.32,157.31,0.03]
[1752156757816,7.45621617,157.32,157.31,0.03]
[1752156758014,13.81268705,157.32,157.31,0.03]
[1752156758528,7.45621617,157.32,157.31,0.03]
[1752156759229,13.81268705,157.32,157.31,0.03]
[1752156759422,7.45621617,157.32,157.31,0.03]
[1752156760538,1.6398,157.35,157.31,0.03]
[1752156760718,0.68,157.37,157.34,6.77621617]
[1752156761519,0.68,157.37,157.35,6.77621617]
[1752156761727,0.68,157.39,157.36,6.77621617]
[1752156761925,13.80921025,157.41,157.36,6.77621617]
[1752156762230,0.68,157.41,157.37,6.77621617]
[1752156762836,0.68,157.41,157.37,13.80059698]
[1752156763015,13.12878351,157.42,157.38,6.77621617]
[1752156763216,0.68,157.42,157.38,7.44621617]
[1752156764015,32.77621617,157.42,157.38,6.77621617]
[1752156764221,0.68,157.41,157.37,6.77621617]
[1752156764422,0.68,157.4,157.37,6.77621617]
[1752156764630,6.35299879,157.41,157.37,6.77621617]
[1752156764830,7.03299879,157.41,157.37,6.77621617]
[1752156766416,0.68,157.41,157.37,7.44621617]
[1752156766632,0.68,157.4,157.35,6.35523487]
[1752156766822,7.45621617,157.39,157.34,6.77621617]
[1752156767010,7.45621617,157.38,157.34,6.77621617]
[1752156767212,7.45621617,157.38,157.33,33.95]
[1752156767213,0.68,157.37,157.33,33.95]
[1752156767435,0.68,157.39,157.35,6.77621617]
[1752156767640,6.77621617,157.39,157.35,6.77621617]
[1752156767834,0.68,157.38,157.34,7.44621617]
[1752156768037,0.68,157.38,157.35,6.77621617]
[1752156768853,13.13010494,157.39,157.35,6.77621617]
[1752156769026,0.71,157.38,157.35,6.77621617]
[1752156769628,0.71,157.37,157.33,13.13212245]
[1752156769830,0.71,157.37,157.33,7.03590628]
[1752156770037,0.71,157.37,157.34,6.77621617]
[1752156770236,7.48621617,157.36,157.32,6.77621617]
[1752156770536,6.77621617,157.34,157.31,0.03]
[1752156771029,6.77621617,157.33,157.31,0.03]
[1752156771238,7.48621617,157.34,157.31,0.03]
[1752156772242,13.84197278,157.34,157.31,0.03]
[1752156772444,6.35492534,157.36,157.31,0.03]
[1752156772646,6.77621617,157.34,157.31,0.71]
[1752156773335,7.48621617,157.35,157.31,0.71]
[1752156773642,6.77621617,157.36,157.32,7.45621617]
[1752156773820,7.48621617,157.36,157.32,7.45621617]
[1752156776060,26.0,157.36,157.34,6.77621617]
[1752156776224,26.71,157.38,157.34,7.45621617]
[1752156776754,33.48621617,157.38,157.34,7.45621617]
[1752156777060,26.71,157.38,157.34,7.45621617]
[1752156777352,0.71,157.38,157.35,6.77621617]
[1752156777650,32.77621617,157.39,157.35,7.45621617]
[1752156777952,26.71,157.39,157.35,7.45621617]
[1752156778130,33.06367744,157.39,157.35,7.45621617]
[1752156778637,0.71,157.38,157.35,6.77621617]
[1752156778839,0.71,157.37,157.34,6.77621617]
[1752156779337,0.71,157.36,157.33,6.3559578]
[1752156779559,6.35367744,157.39,157.33,13.81226848]
[1752156779729,7.48621617,157.38,157.34,6.77621617]
[1752156780042,13.84031526,157.38,157.34,6.77621617]
[1752156780425,13.84031526,157.38,157.34,7.45621617]
[1752156780766,7.06409909,157.38,157.34,6.77621617]
[1752156780923,7.48621617,157.4,157.36,6.77621617]
[1752156781828,0.71,157.39,157.36,6.77621617]
[1752156782045,0.71,157.39,157.35,0.68]
[1752156782246,0.71,157.39,157.36,6.77621617]
[1752156782646,6.77621617,157.4,157.36,7.45621617]
[1752156782956,7.48621617,157.4,157.36,7.45621617]
[1752156783156,0.71,157.39,157.36,6.77621617]
[1752156783363,6.77621617,157.4,157.36,7.45621617]
[1752156783560,32.77621617,157.41,157.37,7.45621617]
[1752156783866,33.06298171,157.41,157.38,6.77621617]
[1752156784052,0.71,157.43,157.39,7.45621617]
[1752156784251,0.06,157.44,157.41,6.77621617]
[1752156784450,6.41162807,157.44,157.41,6.77621617]
[1752156784669,0.77,157.44,157.41,6.77621617]
[1752156784963,0.77,157.44,157.4,0.68]
[1752156785139,0.77,157.44,157.41,6.77621617]
[1752156786466,7.12169362,157.44,157.4,6.77621617]
[1752156786759,0.71,157.43,157.38,6.35388605]
[1752156786966,0.71,157.43,157.39,6.77621617]
[1752156787155,6.4116743,157.44,157.37,6.35445129]
[1752156787340,13.18789047,157.44,157.37,25.00410015]
[1752156787542,0.71,157.43,157.4,6.77621617]
[1752156788061,13.18789047,157.44,157.4,7.45621617]
[1752156788240,0.06,157.44,157.41,6.77621617]
[1752156788435,7.12164381,157.44,157.41,6.77621617]
[1752156789053,7.12164381,157.44,157.4,6.77621617]
[1752156789249,13.18785998,157.44,157.37,6.35445129]
[1752156789457,6.77621617,157.42,157.36,6.3547001]
[1752156789666,0.71,157.41,157.37,6.77621617]
[1752156790256,0.71,157.41,157.37,13.13060332]
[1752156791460,0.71,157.41,157.38,6.77621617]
[1752156791755,7.06308002,157.41,157.37,6.77621617]
[1752156792069,7.06308002,157.41,157.35,13.13143395]
[1752156792070,0.71,157.4,157.35,13.13143395]
[1752156792367,13.83947204,157.4,157.36,7.45621617]
[1752156792582,7.48621617,157.4,157.36,7.45621617]
[1752156793274,13.83949278,157.4,157.36,7.45621617]
[1752156793453,0.71,157.39,157.36,6.77621617]
[1752156793965,13.12949278,157.4,157.36,6.77621617]
[1752156794161,13.12949278,157.4,157.35,7.45621617]
[1752156794362,7.48621617,157.39,157.35,6.77621617]
[1752156794754,0.71,157.38,157.34,6.80621617]
[1752156794975,7.48621617,157.38,157.34,13.84181388]
[1752156795160,0.71,157.38,157.35,6.77621617]
[1752156795360,6.77621617,157.39,157.35,7.45621617]
[1752156795751,7.48621617,157.39,157.35,7.45621617]
[1752156796361,13.83986794,157.39,157.35,7.45621617]
[1752156796560,6.77621617,157.4,157.36,7.45621617]
[1752156796756,6.77621617,157.4,157.37,0.68]
[1752156797283,7.48621617,157.4,157.36,6.77621617]
[1752156798478,13.8395577,157.4,157.36,7.45621617]
[1752156798953,6.77621617,157.38,157.34,0.03]
[1752156799159,0.7,157.39,157.34,0.03]
[1752156799160,6.77621617,157.37,157.34,0.03]
[1752156799360,0.7,157.36,157.34,0.03]
[1752156800354,6.77621617,157.37,157.34,0.03]
[1752156800576,6.77621617,157.39,157.34,7.50621617]
[1752156800873,7.05324015,157.4,157.37,6.77621617]
[1752156800874,26.0,157.4,157.37,6.77621617]
[1752156801179,0.7,157.39,157.36,6.77621617]
[1752156802266,26.0,157.4,157.36,6.77621617]
[1752156802473,26.7,157.4,157.36,6.77621617]
[1752156803056,0.7,157.39,157.36,6.77621617]
[1752156803482,39.12945875,157.4,157.36,6.77621617]
[1752156803679,0.7,157.38,157.35,13.16146239]
[1752156803879,0.7,157.37,157.35,0.03]
[1752156804066,13.83084601,157.37,157.35,0.03]
[1752156804263,0.7,157.36,157.35,0.03]
[1752156804465,7.47621617,157.36,157.35,0.03]
[1752156806075,13.83107127,157.36,157.35,0.03]
[1752156806781,6.77621617,157.36,157.35,0.03]
[1752156806969,13.13080217,157.37,157.35,0.03]
[1752156807279,0.7,157.36,157.35,0.03]
[1752156807467,7.47621617,157.36,157.35,0.03]
[1752156808383,0.7,157.36,157.35,0.03]
[1752156809582,13.13080217,157.37,157.35,0.03]
[1752156809788,13.83080217,157.37,157.35,0.03]
[1752156810673,0.7,157.36,157.35,0.03]
[1752156811179,7.0548551,157.36,157.35,0.03]
[1752156811554,13.83107127,157.36,157.35,0.03]
[1752156813376,47.03107127,157.36,157.35,0.03]
[1752156813884,55.47358744,157.36,157.35,0.03]
[1752156814770,48.69737127,157.36,157.35,0.03]
[1752156817263,47.03107127,157.36,157.35,0.03]
[1752156819182,47.17323284,157.36,157.35,0.03]
[1752156820066,47.03107127,157.36,157.35,0.03]
[1752156822380,40.2548551,157.36,157.35,0.03]
[1752156822561,26.0,157.36,157.35,0.03]
[1752156822870,7.47621617,157.4,157.35,7.50621617]
[1752156823076,0.7,157.4,157.35,7.50621617]
[1752156823278,26.0,157.38,157.35,7.50621617]
[1752156823590,26.0,157.38,157.36,7.47621617]
[1752156823891,32.35406278,157.38,157.36,6.77621617]
[1752156824075,33.05406278,157.38,157.35,0.03]
[1752156824275,33.05406278,157.38,157.35,6.80621617]
[1752156825381,32.35406278,157.38,157.35,6.80621617]
[1752156825580,32.35406278,157.38,157.35,7.50621617]
[1752156826967,32.35406278,157.38,157.35,6.80621617]
[1752156827179,33.05406278,157.38,157.35,6.80621617]
[1752156827390,39.83027895,157.38,157.35,0.03]
[1752156827890,33.05406278,157.38,157.35,6.80621617]
[1752156828977,0.68,157.37,157.35,6.80621617]
[1752156829794,32.35406278,157.38,157.35,6.80621617]
[1752156829974,33.03406278,157.38,157.35,0.03]
[1752156830882,32.35406278,157.38,157.35,7.51621617]
[1752156831081,33.03406278,157.38,157.35,6.80621617]
[1752156832392,26.0,157.38,157.36,7.48621617]
[1752156832594,26.0,157.38,157.37,7.48621617]
[1752156833106,26.0,157.41,157.37,7.48621617]
[1752156833269,26.0,157.4,157.39,6.77621617]
[1752156833866,0.68,157.42,157.39,6.77621617]
[1752156834494,6.35283654,157.41,157.38,7.48621617]
[1752156835281,7.03283654,157.41,157.37,6.77621617]
[1752156835691,7.03283654,157.41,157.38,6.77621617]
[1752156835896,7.03283654,157.41,157.38,7.48621617]
[1752156836095,6.35258439,157.42,157.39,6.77621617]
[1752156836296,7.03258439,157.42,157.39,6.77621617]
[1752156836509,6.35258439,157.42,157.37,0.71]
[1752156836709,6.35258439,157.42,157.35,0.74]
[1752156836710,7.45621617,157.41,157.35,0.74]
[1752156836876,0.68,157.4,157.36,6.77621617]
[1752156837075,26.0,157.39,157.35,0.03]
[1752156837301,0.68,157.38,157.35,0.03]
[1752156837491,26.0,157.39,157.35,6.80621617]
[1752156837692,26.68,157.39,157.36,6.77621617]
[1752156838477,33.03399746,157.39,157.36,6.77621617]
[1752156839186,26.68,157.39,157.36,6.77621617]
[1752156839386,26.0,157.39,157.36,7.48621617]
[1752156839587,26.0,157.39,157.37,7.48621617]
[1752156840512,26.0,157.39,157.37,6.77621617]
[1752156840879,33.03375062,157.39,157.35,0.74]
[1752156841080,33.03375062,157.39,157.36,6.77621617]
[1752156841297,0.68,157.38,157.35,0.03]
[1752156841705,0.68,157.37,157.35,0.03]
[1752156842003,39.12996679,157.39,157.35,6.80621617]
[1752156842206,0.68,157.38,157.35,6.80621617]
[1752156842585,7.03430912,157.38,157.35,6.80621617]
[1752156844791,6.35430912,157.38,157.35,6.80621617]
[1752156845005,0.68,157.37,157.35,6.80621617]
[1752156845604,6.35430912,157.38,157.35,6.80621617]
[1752156845806,7.03430912,157.38,157.35,6.80621617]
[1752156846007,0.68,157.38,157.36,6.77621617]
[1752156846187,33.03374606,157.39,157.36,6.77621617]
[1752156846392,26.0,157.4,157.38,6.77621617]
[1752156846598,6.3526735,157.42,157.39,7.48621617]
[1752156846799,0.06,157.44,157.41,6.77621617]
[1752156847011,0.06,157.44,157.43,6.77621617]
[1752156847199,0.06,157.44,157.41,0.71]
[1752156847406,0.06,157.44,157.42,6.77621617]
[1752156848293,0.06,157.44,157.43,7.48621617]
[1752156848492,0.06,157.44,157.43,6.77621617]
[1752156849319,0.06,157.44,157.4,8.67064724]
[1752156849501,0.68,157.43,157.38,7.3431]
[1752156849697,0.68,157.42,157.39,6.77621617]
[1752156850503,7.51621617,157.44,157.39,6.77621617]
[1752156850716,6.35243298,157.42,157.38,0.71]
[1752156850918,6.35243298,157.42,157.39,6.77621617]
[1752156851120,7.03243298,157.42,157.39,6.77621617]
[1752156851424,0.68,157.42,157.39,6.77621617]
[1752156851924,0.06,157.44,157.41,6.77621617]
[1752156852219,0.06,157.44,157.41,7.48621617]
[1752156852394,0.06,157.44,157.42,6.77621617]
[1752156852800,0.06,157.44,157.43,6.77621617]
[1752156853612,0.06,157.44,157.42,6.77621617]
[1752156854200,0.06,157.44,157.42,7.48621617]
[1752156854602,0.06,157.44,157.43,6.77621617]
[1752156855307,0.06,157.44,157.42,7.48621617]
[1752156855623,0.06,157.44,157.4,7.06312308]
[1752156855807,0.06,157.44,157.43,6.77621617]
[1752156856009,0.06,157.44,157.41,0.71]
[1752156856326,0.68,157.43,157.42,6.77621617]
[1752156856511,0.06,157.44,157.41,6.77621617]
[1752156856705,0.06,157.44,157.42,6.77621617]
[1752156857216,0.06,157.44,157.43,6.77621617]
[1752156857420,0.06,157.44,157.43,25.42586503]
[1752156857739,0.06,157.44,157.43,26.13586503]
[1752156858236,0.06,157.44,157.43,32.4878945]
[1752156858438,0.06,157.55,157.46,26.0]
[1752156858630,0.06,157.55,157.54,6.77621617]
[1752156858806,0.06,157.55,157.53,6.77621617]
[1752156859010,0.74,157.55,157.53,6.77621617]
[1752156859207,0.74,157.55,157.5,0.66]
[1752156859407,0.74,157.55,157.46,0.66]
[1752156859408,6.77621617,157.52,157.46,0.66]
[1752156859716,0.68,157.52,157.48,6.77621617]
[1752156859929,7.45621617,157.51,157.46,6.77621617]
[1752156860132,0.68,157.5,157.46,6.77621617]
[1752156860436,7.45621617,157.49,157.45,33.12]
[1752156860736,7.45621617,157.49,157.45,39.89621617]
[1752156861025,0.68,157.49,157.45,39.89621617]
[1752156861419,7.02969718,157.49,157.45,6.77621617]
[1752156861833,13.80591335,157.49,157.45,6.77621617]
[1752156862414,0.68,157.48,157.45,6.77621617]
[1752156862924,6.34969718,157.49,157.45,7.43621617]
[1752156863138,7.02969718,157.49,157.45,7.43621617]
[1752156863429,7.02894563,157.51,157.47,6.77621617]
[1752156863730,40.69793944,157.52,157.48,7.43621617]
[1752156863939,39.12473944,157.52,157.48,6.77621617]
[1752156864137,0.68,157.51,157.47,6.77621617]
[1752156864511,0.68,157.51,157.46,7.0104553]
[1752156864512,39.12473944,157.52,157.48,7.43621617]
[1752156864730,39.80473944,157.52,157.48,7.43621617]
[1752156864912,33.02852327,157.52,157.48,7.43621617]
[1752156865119,0.68,157.51,157.48,6.77621617]
[1752156865530,0.68,157.51,157.47,6.77621617]
[1752156865714,7.45621617,157.5,157.45,6.77621617]
[1752156865915,0.68,157.49,157.45,6.77621617]
[1752156866738,6.77621617,157.5,157.45,6.77621617]
[1752156866935,0.68,157.48,157.45,6.77621617]
[1752156867238,0.68,157.48,157.44,0.66]
[1752156867239,7.03005045,157.48,157.44,0.66]
[1752156867536,7.03005045,157.48,157.45,6.77621617]
[1752156867923,0.68,157.48,157.45,6.77621617]
[1752156868740,7.03004739,157.48,157.45,6.77621617]
[1752156869041,0.68,157.47,157.42,39.45231148]
[1752156869338,0.68,157.47,157.44,6.77621617]
[1752156869835,6.35004739,157.48,157.44,7.43621617]
[1752156870030,6.35004739,157.48,157.44,0.66]
[1752156870353,7.03004739,157.48,157.44,0.66]
[1752156870520,7.03004739,157.48,157.44,7.43621617]
[1752156871415,0.68,157.47,157.42,7.01229704]
[1752156871719,0.68,157.47,157.44,6.77621617]
[1752156871915,75.0310005,157.52,157.44,6.77621617]
[1752156871916,0.06,157.52,157.46,6.77621617]
[1752156872133,0.06,157.52,157.45,7.01122261]
[1752156872134,0.68,157.51,157.47,6.77621617]
[1752156872339,7.45621617,157.51,157.47,6.77621617]
[1752156872544,0.68,157.5,157.47,6.77621617]
[1752156872849,0.68,157.49,157.47,6.77621617]
[1752156873141,0.68,157.49,157.46,6.77621617]
[1752156873524,0.68,157.48,157.44,6.77621617]
[1752156873746,0.68,157.47,157.44,6.77621617]
[1752156874432,0.68,157.46,157.43,6.77621617]
[1752156875428,13.8065872,157.48,157.43,7.43621617]
[1752156875630,0.68,157.47,157.43,7.43621617]
[1752156875838,0.68,157.47,157.44,6.77621617]
[1752156877139,0.68,157.46,157.43,6.77621617]
[1752156877336,0.68,157.46,157.42,6.77621617]
[1752156878054,0.68,157.46,157.42,7.43621617]
[1752156878256,0.68,157.46,157.43,6.77621617]
[1752156878753,0.68,157.45,157.43,6.77621617]
[1752156879446,6.35117049,157.46,157.43,6.77621617]
[1752156879634,7.03117049,157.46,157.43,6.77621617]
[1752156880632,7.03117049,157.46,157.44,6.77621617]
[1752156881653,6.35041595,157.47,157.44,6.77621617]
[1752156881953,0.68,157.46,157.41,0.03]
[1752156882259,0.68,157.45,157.42,6.77621617]
[1752156882840,6.77621617,157.46,157.42,7.43621617]
[1752156883154,6.35122261,157.45,157.42,7.43621617]
[1752156883850,26.0,157.46,157.44,6.77621617]
[1752156884642,26.0,157.46,157.43,6.77621617]
[1752156885138,32.35099325,157.46,157.43,0.66]
[1752156885454,33.03099325,157.46,157.43,6.77621617]
[1752156886040,6.3505847,157.47,157.44,6.77621617]
[1752156886656,6.3505847,157.47,157.44,7.43621617]
[1752156887062,7.03018403,157.48,157.44,7.43621617]
[1752156888066,0.68,157.47,157.44,6.77621617]
[1752156888434,0.68,157.46,157.43,6.77621617]
[1752156889246,0.68,157.46,157.44,0.03]
[1752156889443,0.69,157.45,157.44,0.03]
[1752156889650,7.46621617,157.45,157.44,0.03]
[1752156891166,7.04122261,157.45,157.44,0.03]
[1752156891862,0.69,157.47,157.44,0.03]
[1752156892368,0.69,157.46,157.44,0.03]
[1752156893161,7.04107996,157.46,157.44,0.03]
[1752156893567,6.35052192,157.47,157.44,7.51621617]
[1752156893863,7.04052192,157.47,157.44,6.80621617]
[1752156894248,7.04052192,157.47,157.44,0.03]
[1752156894449,7.04052192,157.47,157.44,6.80621617]
[1752156895162,6.35052192,157.47,157.44,6.80621617]
[1752156895368,7.04052192,157.47,157.44,6.80621617]
[1752156895761,32.35019712,157.48,157.45,6.77621617]
[1752156895951,26.0,157.48,157.46,7.48621617]
[1752156896155,32.35002342,157.48,157.46,6.77621617]
[1752156896353,0.69,157.47,157.45,6.77621617]
[1752156896551,0.69,157.46,157.44,6.80621617]
[1752156896863,39.81623959,157.48,157.44,0.03]
[1752156897057,0.69,157.47,157.44,6.80621617]
[1752156897869,7.04074455,157.47,157.44,6.80621617]
[1752156898166,32.3501844,157.48,157.45,7.48621617]
[1752156898389,32.3501844,157.48,157.46,6.77621617]
[1752156898944,26.0,157.48,157.46,6.77621617]
[1752156899254,32.35001557,157.48,157.46,6.77621617]
[1752156900268,26.0,157.48,157.46,6.77621617]
[1752156900453,32.35008047,157.48,157.46,6.77621617]
[1752156900852,32.35008047,157.48,157.45,6.77621617]
[1752156900853,0.69,157.47,157.45,6.77621617]
[1752156901371,32.35008047,157.48,157.45,7.48621617]
[1752156901548,32.35008047,157.48,157.46,6.77621617]
[1752156902370,32.35008047,157.48,157.45,7.48621617]
[1752156903169,26.0,157.48,157.46,6.77621617]
[1752156903471,32.3500279,157.48,157.46,6.77621617]
[1752156903847,33.0400279,157.48,157.45,6.77621617]
[1752156905897,32.3500279,157.48,157.46,6.77621617]
[1752156906574,33.0400279,157.48,157.45,6.77621617]
[1752156906747,32.3500279,157.48,157.45,6.77621617]
[1752156907087,32.40891399,157.51,157.47,6.77621617]
[1752156907385,0.69,157.5,157.47,6.77621617]
[1752156907963,0.69,157.5,157.47,7.48621617]
[1752156908270,26.0,157.49,157.47,0.71]
[1752156908474,26.0,157.49,157.48,6.77621617]
[1752156909162,32.34960949,157.49,157.48,6.77621617]
[1752156909358,26.0,157.49,157.48,6.77621617]
[1752156909771,0.06,157.51,157.48,13.83622887]
[1752156910064,0.06,157.51,157.5,6.77621617]
[1752156910468,0.06,157.51,157.49,6.77621617]
[1752156910674,0.75,157.51,157.49,6.77621617]
[1752156910869,7.46621617,157.5,157.46,6.77621617]
[1752156911172,0.69,157.49,157.45,6.77621617]
[1752156911359,7.46621617,157.49,157.44,6.80621617]
[1752156911549,0.69,157.48,157.44,6.80621617]
[1752156911747,0.69,157.47,157.44,6.80621617]
[1752156911966,0.69,157.47,157.44,13.15775999]
[1752156912358,0.69,157.47,157.45,6.77621617]
[1752156913477,13.81595318,157.49,157.45,6.77621617]
[1752156913670,0.69,157.48,157.45,6.77621617]
[1752156913873,13.12552764,157.5,157.46,6.77621617]
[1752156914067,0.69,157.49,157.46,6.77621617]
[1752156914274,26.0,157.5,157.47,6.77621617]
[1752156914481,26.0,157.5,157.47,7.48621617]
[1752156914789,0.06,157.51,157.49,6.77621617]
[1752156914963,0.06,157.51,157.5,6.77621617]
[1752156915476,0.06,157.51,157.49,7.48621617]
[1752156915776,0.06,157.51,157.5,6.77621617]
[1752156915960,0.06,157.51,157.5,7.48621617]
[1752156916769,0.06,157.51,157.5,26.2780266]
[1752156916961,0.06,157.51,157.5,32.62723294]
[1752156917476,0.06,157.51,157.5,65.64723294]
[1752156917854,0.06,157.51,157.5,65.78939451]
[1752156918056,0.06,157.51,157.5,74.70306058]
[1752156918271,0.06,157.51,157.5,65.78939451]
[1752156919063,0.06,157.51,157.5,65.64723294]
[1752156919275,0.06,157.51,157.5,40.50621617]
[1752156920269,0.06,157.51,157.5,39.79621617]
[1752156920472,0.06,157.51,157.5,46.14542251]
[1752156920670,0.06,157.51,157.5,46.80542251]